[Event "Rapid Tournament"]
[Site "Biel, Switzerland"]
[Date "2021.07.25"]
[Round "1.1"]
[White "Studer, Noël"]
[Black "Kamsky, Gata"]
[Result "0-1"]
[TimeControl "15min + 5 sec per move"]
[WhiteTitle "GM"]
[BlackTitle "GM"]
[WhiteFideId "1319620"]
[BlackFideId "2000024"]
[WhiteElo "2431"]
[BlackElo "2701"]

1. d4 {[%clk 00:15:08]} {[%emt 00:00:01]} f5 {[%clk 00:15:08]} {[%emt
00:00:02]} 2. c4 {[%clk 00:15:11]} {[%emt 00:00:02]} Nf6 {[%clk 00:15:09]}
{[%emt 00:00:03]} 3. g3 {[%clk 00:15:14]} {[%emt 00:00:02]} g6 {[%clk
00:15:09]} {[%emt 00:00:05]} 4. Bg2 {[%clk 00:15:18]} {[%emt 00:00:02]} Bg7
{[%clk 00:15:11]} {[%emt 00:00:02]} 5. Nf3 {[%clk 00:15:22]} {[%emt 00:00:02]}
d6 {[%clk 00:15:14]} {[%emt 00:00:02]} 6. O-O {[%clk 00:15:24]} {[%emt
00:00:03]} O-O {[%clk 00:15:16]} {[%emt 00:00:03]} 7. Nc3 {[%clk 00:15:28]}
{[%emt 00:00:02]} c6 {[%clk 00:15:19]} {[%emt 00:00:02]} 8. Re1 {[%clk
00:15:16]} {[%emt 00:00:18]} Na6 {[%clk 00:15:21]} {[%emt 00:00:02]} 9. a3
{[%clk 00:14:26]} {[%emt 00:00:54]} Ne4 {[%clk 00:15:13]} {[%emt 00:00:13]} 10.
Qb3 {[%clk 00:10:54]} {[%emt 00:03:38]} Kh8 {[%clk 00:14:30]} {[%emt 00:00:47]}
11. Be3 {[%clk 00:10:52]} {[%emt 00:00:08]} Nxc3 {[%clk 00:13:16]} {[%emt
00:01:19]} 12. bxc3 {[%clk 00:10:20]} {[%emt 00:00:38]} e5 {[%clk 00:12:43]}
{[%emt 00:00:37]} 13. Bg5 {[%clk 00:06:45]} {[%emt 00:03:41]} Qe8 {[%clk
00:11:52]} {[%emt 00:00:55]} 14. e4 {[%clk 00:05:28]} {[%emt 00:01:22]} f4
{[%clk 00:09:52]} {[%emt 00:02:05]} 15. gxf4 {[%clk 00:03:54]} {[%emt
00:01:39]} h6 {[%clk 00:09:54]} {[%emt 00:00:03]} 16. fxe5 {[%clk 00:03:43]}
{[%emt 00:00:17]} hxg5 {[%clk 00:09:51]} {[%emt 00:00:07]} 17. exd6 {[%clk
00:03:47]} {[%emt 00:00:01]} g4 {[%clk 00:09:51]} {[%emt 00:00:05]} 18. Nd2
{[%clk 00:03:51]} {[%emt 00:00:01]} Qf7 {[%clk 00:06:55]} {[%emt 00:03:02]} 19.
Re2 {[%clk 00:03:53]} {[%emt 00:00:02]} Nc5 {[%clk 00:06:57]} {[%emt 00:00:02]}
20. dxc5 {[%clk 00:03:35]} {[%emt 00:00:23]} Be5 {[%clk 00:07:00]} {[%emt
00:00:02]} 21. Rb1 {[%clk 00:02:32]} {[%emt 00:01:08]} Rb8 {[%clk 00:06:40]}
{[%emt 00:00:24]} 22. Qa4 {[%clk 00:02:36]} {[%emt 00:00:02]} a6 {[%clk
00:05:53]} {[%emt 00:00:52]} 23. Qa5 {[%clk 00:00:29]} {[%emt 00:02:12]} Bd7
{[%clk 00:03:02]} {[%emt 00:02:55]} 24. Qc7 {[%clk 00:00:18]} {[%emt 00:00:16]}
Rfc8 {[%clk 00:03:03]} {[%emt 00:00:04]} 25. Qa5 {[%clk 00:00:21]} {[%emt
00:00:02]} Be6 {[%clk 00:02:47]} {[%emt 00:00:21]} 26. Nf1 {[%clk 00:00:08]}
{[%emt 00:00:18]} Bxc4 {[%clk 00:02:00]} {[%emt 00:00:52]} 27. Reb2 {[%clk
00:00:12]} {[%emt 00:00:02]} Bxf1 {[%clk 00:01:23]} {[%emt 00:00:41]} 28. Kxf1
{[%clk 00:00:09]} {[%emt 00:00:08]} Rf8 {[%clk 00:01:16]} {[%emt 00:00:12]} 29.
Qc7 {[%clk 00:00:10]} {[%emt 00:00:05]} Qc4+ {[%clk 00:00:56]} {[%emt
00:00:24]} 30. Kg1 {[%clk 00:00:14]} {[%emt 00:00:02]} Qxc5 {[%clk 00:00:57]}
{[%emt 00:00:04]} 31. Rd1 {[%clk 00:00:08]} {[%emt 00:00:11]} b5 {[%clk
00:00:48]} {[%emt 00:00:13]} 32. Qe7 {[%clk 00:00:10]} {[%emt 00:00:04]} Rf6
{[%clk 00:00:43]} {[%emt 00:00:09]} 33. Rf1 {[%clk 00:00:06]} {[%emt 00:00:09]}
Rbf8 {[%clk 00:00:38]} {[%emt 00:00:09]} 34. Rd2 {[%clk 00:00:09]} {[%emt
00:00:02]} Bxd6 {[%clk 00:00:35]} {[%emt 00:00:08]} 35. Qd7 {[%clk 00:00:12]}
{[%emt 00:00:03]} Qe5 {[%clk 00:00:37]} {[%emt 00:00:02]} 36. f4 {[%clk
00:00:12]} {[%emt 00:00:05]} gxf3 {[%clk 00:00:38]} {[%emt 00:00:05]} 37. Qh3+
{[%clk 00:00:12]} {[%emt 00:00:05]} Kg8 {[%clk 00:00:37]} {[%emt 00:00:05]} 38.
Bxf3 {[%clk 00:00:10]} {[%emt 00:00:08]} Qxc3 {[%clk 00:00:23]} {[%emt
00:00:19]} 39. Rg2 {[%clk 00:00:13]} {[%emt 00:00:03]} Kg7 {[%clk 00:00:16]}
{[%emt 00:00:12]} 40. Qh5 {[%clk 00:00:06]} {[%emt 00:00:12]} Qc5+ {[%clk
00:00:18]} {[%emt 00:00:02]} 0-1

[Event "Rapid Tournament"]
[Site "Biel, Switzerland"]
[Date "2021.07.25"]
[Round "1.2"]
[White "Keymer, Vincent"]
[Black "Lagarde, Maxime"]
[Result "0-1"]
[TimeControl "15min + 5 sec per move"]
[WhiteTitle "GM"]
[BlackTitle "GM"]
[WhiteFideId "12940690"]
[BlackFideId "662399"]
[WhiteElo "2543"]
[BlackElo "2684"]

1. d4 {[%clk 00:15:08]} {[%emt 00:00:01]} f5 {[%clk 00:15:09]} {[%emt
00:00:01]} 2. Nf3 {[%clk 00:15:09]} {[%emt 00:00:04]} Nf6 {[%clk 00:15:13]}
{[%emt 00:00:01]} 3. g3 {[%clk 00:15:13]} {[%emt 00:00:01]} g6 {[%clk
00:15:17]} {[%emt 00:00:01]} 4. Bg2 {[%clk 00:15:17]} Bg7 {[%clk 00:15:21]}
{[%emt 00:00:01]} 5. O-O {[%clk 00:15:20]} {[%emt 00:00:02]} O-O {[%clk
00:15:24]} {[%emt 00:00:02]} 6. b3 {[%clk 00:15:24]} b6 {[%clk 00:15:21]}
{[%emt 00:00:09]} 7. Bb2 {[%clk 00:15:14]} {[%emt 00:00:15]} Bb7 {[%clk
00:15:20]} {[%emt 00:00:05]} 8. c4 {[%clk 00:15:12]} {[%emt 00:00:07]} e6
{[%clk 00:15:16]} {[%emt 00:00:09]} 9. Nc3 {[%clk 00:14:35]} {[%emt 00:00:42]}
Ne4 {[%clk 00:15:07]} {[%emt 00:00:14]} 10. Rc1 {[%clk 00:14:06]} {[%emt
00:00:34]} d6 {[%clk 00:12:11]} {[%emt 00:03:01]} 11. Qd3 {[%clk 00:12:21]}
{[%emt 00:01:50]} Nd7 {[%clk 00:09:41]} {[%emt 00:02:36]} 12. Nd2 {[%clk
00:11:45]} {[%emt 00:00:41]} d5 {[%clk 00:09:21]} {[%emt 00:00:25]} 13. Nf3
{[%clk 00:10:52]} {[%emt 00:00:58]} c6 {[%clk 00:08:54]} {[%emt 00:00:32]} 14.
e3 {[%clk 00:10:00]} {[%emt 00:00:57]} Qe7 {[%clk 00:08:42]} {[%emt 00:00:17]}
15. Ne2 {[%clk 00:09:21]} {[%emt 00:00:44]} a5 {[%clk 00:08:33]} {[%emt
00:00:14]} 16. Qc2 {[%clk 00:09:02]} {[%emt 00:00:24]} Rfc8 {[%clk 00:07:56]}
{[%emt 00:00:42]} 17. Rfd1 {[%clk 00:08:39]} {[%emt 00:00:28]} a4 {[%clk
00:07:15]} {[%emt 00:00:46]} 18. Ne1 {[%clk 00:07:11]} {[%emt 00:01:33]} axb3
{[%clk 00:06:26]} {[%emt 00:00:54]} 19. axb3 {[%clk 00:07:15]} {[%emt
00:00:01]} Ra2 {[%clk 00:06:29]} {[%emt 00:00:02]} 20. Ra1 {[%clk 00:06:40]}
{[%emt 00:00:41]} Rca8 {[%clk 00:06:33]} {[%emt 00:00:01]} 21. Rxa2 {[%clk
00:06:43]} {[%emt 00:00:02]} Rxa2 {[%clk 00:06:34]} {[%emt 00:00:03]} 22. Nd3
{[%clk 00:06:42]} {[%emt 00:00:06]} c5 {[%clk 00:05:49]} {[%emt 00:00:50]} 23.
cxd5 {[%clk 00:04:51]} {[%emt 00:01:56]} exd5 {[%clk 00:05:49]} {[%emt
00:00:06]} 24. Qb1 {[%clk 00:04:50]} {[%emt 00:00:06]} Ra8 {[%clk 00:05:18]}
{[%emt 00:00:36]} 25. dxc5 {[%clk 00:04:50]} {[%emt 00:00:06]} bxc5 {[%clk
00:05:15]} {[%emt 00:00:08]} 26. Ndf4 {[%clk 00:04:52]} {[%emt 00:00:03]} Ndf6
{[%clk 00:04:53]} {[%emt 00:00:27]} 27. Qc1 {[%clk 00:03:24]} {[%emt 00:01:34]}
Ra2 {[%clk 00:03:53]} {[%emt 00:01:05]} 28. Bxf6 {[%clk 00:03:22]} {[%emt
00:00:07]} Bxf6 {[%clk 00:03:49]} {[%emt 00:00:09]} 29. Bxe4 {[%clk 00:03:22]}
{[%emt 00:00:05]} Qxe4 {[%clk 00:03:26]} {[%emt 00:00:28]} 30. Qxc5 {[%clk
00:01:22]} {[%emt 00:02:05]} d4 {[%clk 00:03:27]} {[%emt 00:00:04]} 31. Kf1
{[%clk 00:01:26]} Qh1+ {[%clk 00:01:36]} {[%emt 00:01:55]} 32. Ng1 {[%clk
00:01:31]} Ba6+ {[%clk 00:01:40]} {[%emt 00:00:02]} 33. Nd3 {[%clk 00:01:29]}
{[%emt 00:00:06]} Bxd3+ {[%clk 00:00:32]} {[%emt 00:01:14]} 34. Rxd3 {[%clk
00:01:34]} Ra1+ {[%clk 00:00:36]} {[%emt 00:00:01]} 35. Ke2 {[%clk 00:01:38]}
Qxg1 {[%clk 00:00:22]} {[%emt 00:00:19]} 36. Qc8+ {[%clk 00:00:30]} {[%emt
00:01:13]} Kg7 {[%clk 00:00:26]} {[%emt 00:00:01]} 37. Qc7+ {[%clk 00:00:35]}
{[%emt 00:00:01]} Kh6 {[%clk 00:00:27]} {[%emt 00:00:03]} 38. Qf4+ {[%clk
00:00:39]} {[%emt 00:00:01]} Bg5 {[%clk 00:00:20]} {[%emt 00:00:12]} 39. Qxd4
{[%clk 00:00:42]} {[%emt 00:00:01]} Rf1 {[%clk 00:00:13]} {[%emt 00:00:12]} 40.
e4 {[%clk 00:00:22]} {[%emt 00:00:26]} Re1+ {[%clk 00:00:13]} {[%emt 00:00:04]}
0-1

[Event "Rapid Tournament"]
[Site "Biel, Switzerland"]
[Date "2021.07.25"]
[Round "1.3"]
[White "Nihal, Sarin"]
[Black "Alekseenko, Kirill"]
[Result "1-0"]
[TimeControl "15min + 5 sec per move"]
[WhiteTitle "GM"]
[BlackTitle "GM"]
[WhiteFideId "25092340"]
[BlackFideId "4135539"]
[WhiteElo "2418"]
[BlackElo "2661"]

1. b3 {[%clk 00:15:08]} {[%emt 00:00:02]} d5 {[%clk 00:14:54]} {[%emt
00:00:16]} 2. Bb2 {[%clk 00:15:12]} {[%emt 00:00:02]} Bf5 {[%clk 00:14:56]}
{[%emt 00:00:03]} 3. d3 {[%clk 00:15:14]} {[%emt 00:00:02]} e6 {[%clk
00:14:47]} {[%emt 00:00:14]} 4. Nd2 {[%clk 00:15:16]} {[%emt 00:00:03]} Nf6
{[%clk 00:14:37]} {[%emt 00:00:15]} 5. g3 {[%clk 00:15:20]} {[%emt 00:00:01]}
h6 {[%clk 00:14:32]} {[%emt 00:00:10]} 6. Bg2 {[%clk 00:15:23]} {[%emt
00:00:01]} Be7 {[%clk 00:14:17]} {[%emt 00:00:20]} 7. e4 {[%clk 00:15:26]}
{[%emt 00:00:02]} Bh7 {[%clk 00:14:20]} {[%emt 00:00:01]} 8. Nh3 {[%clk
00:15:17]} {[%emt 00:00:14]} a5 {[%clk 00:14:14]} {[%emt 00:00:12]} 9. a3
{[%clk 00:14:41]} {[%emt 00:00:41]} c5 {[%clk 00:10:23]} {[%emt 00:03:56]} 10.
O-O {[%clk 00:14:23]} {[%emt 00:00:23]} O-O {[%clk 00:10:19]} {[%emt 00:00:10]}
11. Nf4 {[%clk 00:13:30]} {[%emt 00:00:58]} Nc6 {[%clk 00:10:18]} {[%emt
00:00:06]} 12. exd5 {[%clk 00:13:24]} {[%emt 00:00:10]} exd5 {[%clk 00:09:47]}
{[%emt 00:00:36]} 13. Re1 {[%clk 00:13:22]} {[%emt 00:00:07]} a4 {[%clk
00:07:59]} {[%emt 00:01:54]} 14. Bxf6 {[%clk 00:12:31]} {[%emt 00:00:55]} Bxf6
{[%clk 00:07:58]} {[%emt 00:00:06]} 15. Rb1 {[%clk 00:12:35]} Ne7 {[%clk
00:07:25]} {[%emt 00:00:39]} 16. bxa4 {[%clk 00:12:27]} {[%emt 00:00:14]} Qd7
{[%clk 00:05:45]} {[%emt 00:01:45]} 17. c4 {[%clk 00:11:46]} {[%emt 00:00:46]}
Bg5 {[%clk 00:04:37]} {[%emt 00:01:13]} 18. Nxd5 {[%clk 00:10:47]} {[%emt
00:01:04]} Nxd5 {[%clk 00:04:39]} {[%emt 00:00:03]} 19. Bxd5 {[%clk 00:10:50]}
{[%emt 00:00:02]} Qxa4 {[%clk 00:04:03]} {[%emt 00:00:42]} 20. Qxa4 {[%clk
00:09:17]} {[%emt 00:01:37]} Rxa4 {[%clk 00:04:06]} {[%emt 00:00:02]} 21. Ne4
{[%clk 00:09:21]} Bxe4 {[%clk 00:03:16]} {[%emt 00:00:55]} 22. dxe4 {[%clk
00:09:21]} {[%emt 00:00:05]} Rxa3 {[%clk 00:02:56]} {[%emt 00:00:25]} 23. Rxb7
{[%clk 00:08:44]} {[%emt 00:00:41]} Bd2 {[%clk 00:02:59]} {[%emt 00:00:02]} 24.
Re2 {[%clk 00:08:14]} {[%emt 00:00:35]} Bc3 {[%clk 00:02:45]} {[%emt 00:00:20]}
25. Kg2 {[%clk 00:08:17]} {[%emt 00:00:01]} Bd4 {[%clk 00:02:45]} {[%emt
00:00:05]} 26. e5 {[%clk 00:07:59]} {[%emt 00:00:23]} Ra6 {[%clk 00:02:48]}
{[%emt 00:00:02]} 27. f4 {[%clk 00:07:59]} {[%emt 00:00:04]} Ra1 {[%clk
00:02:33]} {[%emt 00:00:21]} 28. f5 {[%clk 00:07:30]} {[%emt 00:00:33]} Rg1+
{[%clk 00:02:27]} {[%emt 00:00:10]} 29. Kh3 {[%clk 00:07:33]} {[%emt 00:00:02]}
Rf1 {[%clk 00:02:31]} {[%emt 00:00:02]} 30. e6 {[%clk 00:07:23]} {[%emt
00:00:15]} 1-0

[Event "Rapid Tournament"]
[Site "Biel, Switzerland"]
[Date "2021.07.25"]
[Round "1.4"]
[White "Pichot, Alan"]
[Black "Gelfand, Boris"]
[Result "1-0"]
[TimeControl "15min + 5 sec per move"]
[WhiteTitle "GM"]
[BlackTitle "GM"]
[WhiteFideId "110973"]
[BlackFideId "2805677"]
[WhiteElo "2533"]
[BlackElo "2702"]

1. e4 {[%clk 00:15:07]} {[%emt 00:00:02]} c5 {[%clk 00:15:09]} {[%emt
00:00:01]} 2. Nf3 {[%clk 00:15:09]} {[%emt 00:00:03]} Nc6 {[%clk 00:15:14]}
{[%emt 00:00:01]} 3. d4 {[%clk 00:15:11]} {[%emt 00:00:02]} cxd4 {[%clk
00:15:18]} {[%emt 00:00:01]} 4. Nxd4 {[%clk 00:15:14]} {[%emt 00:00:02]} Nf6
{[%clk 00:15:21]} {[%emt 00:00:02]} 5. Nc3 {[%clk 00:15:17]} {[%emt 00:00:02]}
e5 {[%clk 00:15:25]} {[%emt 00:00:01]} 6. Ndb5 {[%clk 00:15:19]} {[%emt
00:00:03]} d6 {[%clk 00:15:29]} {[%emt 00:00:01]} 7. Nd5 {[%clk 00:15:17]}
{[%emt 00:00:07]} Nxd5 {[%clk 00:15:33]} {[%emt 00:00:02]} 8. exd5 {[%clk
00:15:20]} {[%emt 00:00:02]} Nb8 {[%clk 00:15:37]} {[%emt 00:00:01]} 9. c4
{[%clk 00:15:19]} {[%emt 00:00:05]} Be7 {[%clk 00:15:27]} {[%emt 00:00:15]} 10.
Bd3 {[%clk 00:15:22]} {[%emt 00:00:02]} a6 {[%clk 00:15:13]} {[%emt 00:00:19]}
11. Nc3 {[%clk 00:15:26]} {[%emt 00:00:01]} O-O {[%clk 00:15:17]} {[%emt
00:00:01]} 12. O-O {[%clk 00:15:28]} {[%emt 00:00:02]} f5 {[%clk 00:15:08]}
{[%emt 00:00:14]} 13. f3 {[%clk 00:15:28]} {[%emt 00:00:05]} Nd7 {[%clk
00:15:12]} {[%emt 00:00:01]} 14. a3 {[%clk 00:15:01]} {[%emt 00:00:32]} b6
{[%clk 00:15:01]} {[%emt 00:00:16]} 15. Kh1 {[%clk 00:14:31]} {[%emt 00:00:35]}
Rb8 {[%clk 00:12:39]} {[%emt 00:02:27]} 16. Be3 {[%clk 00:12:42]} {[%emt
00:01:53]} Bg5 {[%clk 00:12:26]} {[%emt 00:00:18]} 17. Bg1 {[%clk 00:12:41]}
{[%emt 00:00:06]} Qf6 {[%clk 00:11:22]} {[%emt 00:01:09]} 18. Qc2 {[%clk
00:12:07]} {[%emt 00:00:39]} Nc5 {[%clk 00:09:56]} {[%emt 00:01:31]} 19. Be2
{[%clk 00:11:17]} {[%emt 00:00:54]} Qh6 {[%clk 00:09:41]} {[%emt 00:00:20]} 20.
b4 {[%clk 00:10:43]} {[%emt 00:00:39]} Nd7 {[%clk 00:09:44]} {[%emt 00:00:02]}
21. Rad1 {[%clk 00:08:20]} {[%emt 00:02:28]} Nf6 {[%clk 00:08:23]} {[%emt
00:01:26]} 22. Bd3 {[%clk 00:05:34]} {[%emt 00:02:51]} Nh5 {[%clk 00:07:06]}
{[%emt 00:01:22]} 23. Ne2 {[%clk 00:05:37]} {[%emt 00:00:01]} Be3 {[%clk
00:04:53]} {[%emt 00:02:17]} 24. Bxe3 {[%clk 00:03:57]} {[%emt 00:01:46]} Qxe3
{[%clk 00:04:57]} {[%emt 00:00:01]} 25. Qd2 {[%clk 00:03:42]} {[%emt 00:00:20]}
Qxd2 {[%clk 00:04:44]} {[%emt 00:00:17]} 26. Rxd2 {[%clk 00:03:46]} {[%emt
00:00:01]} Bd7 {[%clk 00:04:43]} {[%emt 00:00:06]} 27. Rc1 {[%clk 00:03:48]}
{[%emt 00:00:03]} Nf6 {[%clk 00:03:50]} {[%emt 00:00:58]} 28. Kg1 {[%clk
00:02:26]} {[%emt 00:01:26]} e4 {[%clk 00:02:04]} {[%emt 00:01:51]} 29. Bb1
{[%clk 00:02:14]} {[%emt 00:00:18]} Rbc8 {[%clk 00:02:07]} {[%emt 00:00:02]} 30.
Rc3 {[%clk 00:01:37]} {[%emt 00:00:41]} Rfe8 {[%clk 00:01:48]} {[%emt
00:00:25]} 31. Kf1 {[%clk 00:01:11]} {[%emt 00:00:31]} a5 {[%clk 00:01:29]}
{[%emt 00:00:24]} 32. Rd4 {[%clk 00:01:05]} {[%emt 00:00:11]} axb4 {[%clk
00:01:00]} {[%emt 00:00:34]} 33. axb4 {[%clk 00:01:09]} Ra8 {[%clk 00:01:01]}
{[%emt 00:00:04]} 34. Bc2 {[%clk 00:00:40]} {[%emt 00:00:34]} Ra2 {[%clk
00:00:50]} {[%emt 00:00:16]} 35. Rd1 {[%clk 00:00:40]} {[%emt 00:00:05]} Rb2
{[%clk 00:00:24]} {[%emt 00:00:31]} 36. Rb1 {[%clk 00:00:33]} {[%emt 00:00:12]}
Rxb1+ {[%clk 00:00:28]} {[%emt 00:00:01]} 37. Bxb1 {[%clk 00:00:37]} {[%emt
00:00:01]} Ra8 {[%clk 00:00:28]} {[%emt 00:00:05]} 38. Kf2 {[%clk 00:00:32]}
{[%emt 00:00:10]} Ra4 {[%clk 00:00:21]} {[%emt 00:00:12]} 39. Rb3 {[%clk
00:00:34]} {[%emt 00:00:03]} exf3 {[%clk 00:00:21]} {[%emt 00:00:06]} 40. gxf3
{[%clk 00:00:35]} {[%emt 00:00:04]} b5 {[%clk 00:00:25]} {[%emt 00:00:01]} 41.
Bd3 {[%clk 00:00:23]} {[%emt 00:00:17]} Ra2 {[%clk 00:00:21]} {[%emt 00:00:09]}
42. cxb5 {[%clk 00:00:24]} {[%emt 00:00:04]} Kf8 {[%clk 00:00:17]} {[%emt
00:00:09]} 43. b6 {[%clk 00:00:18]} {[%emt 00:00:12]} Ra8 {[%clk 00:00:20]}
{[%emt 00:00:02]} 44. Nc3 {[%clk 00:00:13]} {[%emt 00:00:09]} Rb8 {[%clk
00:00:22]} {[%emt 00:00:03]} 45. Ke3 {[%clk 00:00:16]} {[%emt 00:00:02]} Rxb6
{[%clk 00:00:25]} {[%emt 00:00:02]} 46. Kd4 {[%clk 00:00:21]} Ke7 {[%clk
00:00:22]} {[%emt 00:00:08]} 47. b5 {[%clk 00:00:25]} {[%emt 00:00:01]} Kd8
{[%clk 00:00:23]} {[%emt 00:00:04]} 48. Ra3 {[%clk 00:00:29]} Kc7 {[%clk
00:00:21]} {[%emt 00:00:07]} 49. Ra7+ {[%clk 00:00:18]} {[%emt 00:00:16]} Rb7
{[%clk 00:00:25]} 50. Ra6 {[%clk 00:00:16]} {[%emt 00:00:07]} Rb6 {[%clk
00:00:28]} {[%emt 00:00:03]} 51. Ra1 {[%clk 00:00:15]} {[%emt 00:00:05]} Rb8
{[%clk 00:00:29]} {[%emt 00:00:04]} 52. Re1 {[%clk 00:00:12]} {[%emt 00:00:08]}
Re8 {[%clk 00:00:30]} {[%emt 00:00:04]} 53. Ra1 {[%clk 00:00:12]} {[%emt
00:00:06]} Kb7 {[%clk 00:00:29]} {[%emt 00:00:06]} 54. Ra6 {[%clk 00:00:13]}
{[%emt 00:00:04]} Kc7 {[%clk 00:00:24]} {[%emt 00:00:09]} 55. Na4 {[%clk
00:00:17]} Rb8 {[%clk 00:00:24]} {[%emt 00:00:05]} 56. b6+ {[%clk 00:00:19]}
{[%emt 00:00:03]} Kd8 {[%clk 00:00:26]} {[%emt 00:00:03]} 57. Nc3 {[%clk
00:00:12]} {[%emt 00:00:13]} Bc8 {[%clk 00:00:30]} {[%emt 00:00:01]} 58. b7
{[%clk 00:00:16]} Rxb7 {[%clk 00:00:29]} {[%emt 00:00:07]} 59. Rxd6+ {[%clk
00:00:20]} Ke7 {[%clk 00:00:27]} {[%emt 00:00:06]} 60. Rc6 {[%clk 00:00:16]}
{[%emt 00:00:09]} Bd7 {[%clk 00:00:30]} {[%emt 00:00:02]} 61. Ra6 {[%clk
00:00:19]} {[%emt 00:00:03]} Rb2 {[%clk 00:00:16]} {[%emt 00:00:19]} 62. d6+
{[%clk 00:00:15]} {[%emt 00:00:09]} Kf7 {[%clk 00:00:19]} {[%emt 00:00:02]} 63.
Bc4+ {[%clk 00:00:12]} {[%emt 00:00:08]} Kg6 {[%clk 00:00:22]} {[%emt
00:00:02]} 64. Nd5 {[%clk 00:00:16]} {[%emt 00:00:02]} Nxd5 {[%clk 00:00:11]}
{[%emt 00:00:16]} 65. Bxd5 {[%clk 00:00:15]} {[%emt 00:00:05]} Rxh2 {[%clk
00:00:13]} {[%emt 00:00:03]} 66. Ra7 {[%clk 00:00:17]} {[%emt 00:00:03]} Rd2+
{[%clk 00:00:17]} {[%emt 00:00:01]} 67. Ke5 {[%clk 00:00:18]} {[%emt 00:00:04]}
Re2+ {[%clk 00:00:07]} {[%emt 00:00:15]} 68. Kf4 {[%clk 00:00:23]} Bb5 {[%clk
00:00:09]} {[%emt 00:00:04]} 69. Rb7 {[%clk 00:00:17]} {[%emt 00:00:11]} Ba4
{[%clk 00:00:08]} {[%emt 00:00:05]} 70. d7 {[%clk 00:00:12]} {[%emt 00:00:10]}
Bxd7 71. Rxd7 {[%clk 00:00:17]} Kh6 {[%clk 00:00:10]} {[%emt 00:00:07]} 72.
Kxf5 {[%clk 00:00:19]} {[%emt 00:00:03]} Re8 {[%clk 00:00:07]} {[%emt
00:00:08]} 73. f4 {[%clk 00:00:17]} {[%emt 00:00:06]} g6+ {[%clk 00:00:08]}
{[%emt 00:00:04]} 74. Kf6 {[%clk 00:00:17]} {[%emt 00:00:06]} Rf8+ {[%clk
00:00:09]} {[%emt 00:00:04]} 75. Bf7 {[%clk 00:00:21]} Rb8 {[%emt 00:00:10]}
1-0

[ePGN "0.1;DGT LiveChess/2.2.5"]

[Event "Rapid Tournament"]
[Site "Biel, Switzerland"]
[Date "2021.07.25"]
[Round "2.1"]
[White "Pichot, Alan"]
[Black "Studer, Noël"]
[Result "1-0"]
[TimeControl "15min + 5 sec per move"]
[WhiteTitle "GM"]
[BlackTitle "GM"]
[WhiteFideId "110973"]
[BlackFideId "1319620"]
[WhiteElo "2533"]
[BlackElo "2431"]

1. e4 {[%clk 00:15:06]} {[%emt 00:00:02]} c5 {[%clk 00:15:09]} {[%emt
00:00:03]} 2. Nf3 {[%clk 00:15:09]} {[%emt 00:00:02]} Nc6 {[%clk 00:15:14]}
{[%emt 00:00:01]} 3. d4 {[%clk 00:15:12]} {[%emt 00:00:02]} cxd4 {[%clk
00:15:17]} {[%emt 00:00:02]} 4. Nxd4 {[%clk 00:15:15]} {[%emt 00:00:01]} Nf6
{[%clk 00:15:21]} 5. Nc3 {[%clk 00:15:18]} {[%emt 00:00:02]} e5 {[%clk
00:15:25]} {[%emt 00:00:02]} 6. Ndb5 {[%clk 00:15:21]} {[%emt 00:00:01]} d6
{[%clk 00:15:29]} {[%emt 00:00:01]} 7. Nd5 {[%clk 00:15:21]} {[%emt 00:00:05]}
Nxd5 {[%clk 00:15:33]} {[%emt 00:00:01]} 8. exd5 {[%clk 00:15:25]} {[%emt
00:00:02]} Nb8 {[%clk 00:15:37]} {[%emt 00:00:01]} 9. c4 {[%clk 00:15:27]}
{[%emt 00:00:02]} Be7 {[%clk 00:15:21]} {[%emt 00:00:20]} 10. Bd3 {[%clk
00:15:31]} {[%emt 00:00:02]} O-O {[%clk 00:14:59]} {[%emt 00:00:27]} 11. O-O
{[%clk 00:15:24]} {[%emt 00:00:12]} a6 {[%clk 00:14:12]} {[%emt 00:00:53]} 12.
Nc3 {[%clk 00:15:27]} {[%emt 00:00:01]} Nd7 {[%clk 00:14:16]} {[%emt 00:00:01]}
13. Qc2 {[%clk 00:15:27]} {[%emt 00:00:05]} g6 {[%clk 00:14:08]} {[%emt
00:00:14]} 14. Bh6 {[%clk 00:15:29]} {[%emt 00:00:02]} Re8 {[%clk 00:14:12]}
{[%emt 00:00:02]} 15. b4 {[%clk 00:15:32]} {[%emt 00:00:02]} f5 {[%clk
00:13:47]} {[%emt 00:00:30]} 16. Rad1 {[%clk 00:14:56]} {[%emt 00:00:41]} Bf6
{[%clk 00:13:29]} {[%emt 00:00:23]} 17. c5 {[%clk 00:14:08]} {[%emt 00:00:53]}
dxc5 {[%clk 00:13:24]} {[%emt 00:00:11]} 18. d6 {[%clk 00:13:37]} {[%emt
00:00:35]} b6 {[%clk 00:06:14]} {[%emt 00:07:15]} 19. Nd5 {[%clk 00:10:57]}
{[%emt 00:02:45]} Ra7 {[%clk 00:06:15]} {[%emt 00:00:04]} 20. Nc7 {[%clk
00:10:00]} {[%emt 00:01:02]} Rxc7 {[%clk 00:06:13]} {[%emt 00:00:07]} 21. dxc7
{[%clk 00:10:03]} {[%emt 00:00:01]} Qxc7 {[%clk 00:06:17]} {[%emt 00:00:02]} 22.
Qc4+ {[%clk 00:10:07]} {[%emt 00:00:01]} Kh8 {[%clk 00:06:04]} {[%emt
00:00:18]} 23. Qf7 {[%clk 00:10:09]} {[%emt 00:00:03]} Qd8 {[%clk 00:05:59]}
{[%emt 00:00:11]} 24. Bxa6 {[%clk 00:09:55]} {[%emt 00:00:18]} Re7 {[%clk
00:05:05]} {[%emt 00:00:59]} 25. Qxf6+ {[%clk 00:09:57]} {[%emt 00:00:04]} 1-0